fUST/lending_fUST_20240717
["ID","MTS","AMOUNT","RATE_DAILY","PERIOD"]
[332472528,1721220638854,-344.96997794,0.00020085,2]
[332472529,1721220638864,-5159.77007997,0.00020164,2]
[332472530,1721220638874,-428.94151396,0.00020222,2]
[332472531,1721220638883,-226.06683349,0.00020222,2]
[332472532,1721220638892,-215.01715484,0.00020222,2]
[332472533,1721220638902,-764.99692513,0.00020222,2]
[332472534,1721220638914,-24890.0,0.00020509,2]
[332472535,1721220638924,-207.84529184,0.0002056,2]
[332472536,1721220638935,-355.49665182,0.0002066,7]
[332472537,1721220638945,-313.5828226,0.00020673,2]
[332472538,1721220638956,-420.0,0.00020786,2]
[332472539,1721220638969,-4823.5584033,0.0002098,3]
[332472540,1721220638978,-61789.79864933,0.0002099,2]
[332472541,1721220638987,-4823.5584033,0.0002099,3]
[332472542,1721220638997,-151.023888,0.0002099,2]
[332472543,1721220639006,-151.0,0.0002099,2]
[332472544,1721220639016,-248.416838,0.0002099,2]
[332472545,1721220639027,-151.0,0.0002099,2]
[332472546,1721220639037,-151.0,0.0002099,2]
[332472547,1721220639046,-6992.96242863,0.00021,2]
[332472548,1721220639056,-1000.0,0.00021,4]
[332472549,1721220639065,-200.07730814,0.00021095,2]
[332472550,1721220639075,-553.753693,0.00021096,2]
[332472551,1721220639084,-207.84529182,0.00021188,2]
[332472552,1721220639095,-153.0,0.0002119,2]
[332472553,1721220639105,-153.0,0.0002119,2]
[332472554,1721220639118,-153.0,0.0002119,2]
[332472555,1721220639127,-153.0,0.0002119,2]
[332472556,1721220639137,-153.0,0.0002119,2]
[332472557,1721220639146,-151.0,0.00021622,2]
[332472558,1721220639156,-218.68808679,0.00021649,2]
[332472559,1721220639165,-1000.0,0.0002166,2]
[332472560,1721220639174,-1000.0,0.00021699,2]
[332472561,1721220639184,-300.44952216,0.00021749,2]
[332472562,1721220639195,-150.0,0.000218,2]
[332472563,1721220639204,-1945.47989268,0.00021807,2]
[332472564,1721220639215,-207.84529182,0.00021816,2]
[332472565,1721220639225,-2000.0,0.00021817,2]
[332472566,1721220639235,-151.0,0.00021838,2]
[332472567,1721220639244,-877.02144721,0.00021888,2]
[332472568,1721220639253,-294.0,0.000219,2]
[332472569,1721220639262,-19294.2336132,0.00021907,3]
[332472570,1721220639272,-151.0,0.00021907,2]
[332472571,1721220639281,-151.0,0.00021907,2]
[332472572,1721220639291,-151.0,0.00021907,2]
[332472573,1721220639301,-198.315839,0.00021907,2]
[332472574,1721220639310,-151.0,0.00021907,2]
[332472575,1721220639320,-151.0,0.00021907,2]
[332472576,1721220639329,-151.0,0.00021907,2]
[332472577,1721220639339,-151.0,0.00021907,2]
[332472578,1721220639348,-151.0,0.00021907,2]
[332472579,1721220639358,-1898.975898,0.00021907,2]
[332472580,1721220639367,-1898.975898,0.00021907,2]
[332472581,1721220639377,-151.0,0.00021907,2]
[332472582,1721220639386,-151.0,0.00021907,2]
[332472583,1721220639395,-202.846316,0.00021907,2]
[332472584,1721220639404,-151.0,0.00021907,2]
[332472585,1721220639413,-151.0,0.00021907,2]
[332472586,1721220639422,-151.0,0.00021907,2]
[332472587,1721220639431,-151.0,0.00021907,2]
[332472588,1721220639440,-151.0,0.00021907,2]
[332472589,1721220639449,-151.0,0.00021907,2]
[332472590,1721220639458,-151.0,0.00021907,2]
[332472591,1721220639470,-151.0,0.00021907,2]
[332472592,1721220639479,-151.0,0.00021907,2]
[332472593,1721220639489,-151.0,0.00021907,2]
[332472594,1721220639499,-151.0,0.00021907,2]
[332472595,1721220639508,-151.0,0.00021907,2]
[332472596,1721220639517,-154.437442,0.00021907,2]
[332472597,1721220639526,-151.0,0.00021907,2]
[332472598,1721220639536,-243.84601199,0.00021916,2]
[332472599,1721220639546,-500.0,0.00021916,2]
[332472600,1721220639555,-500.0,0.00021916,2]
[332472601,1721220639564,-500.0,0.00021916,2]
[332472602,1721220639573,-276.47636661,0.00021916,2]
[332472603,1721220639583,-466.18356883,0.00021916,2]
[332472604,1721220639592,-500.0,0.00021916,2]
[332472605,1721220639601,-430.09024845,0.00021916,2]
[332472606,1721220639610,-500.0,0.00021916,2]
[332472607,1721220639620,-500.0,0.00021916,2]
[332472608,1721220639629,-500.0,0.00021916,2]
[332472609,1721220639638,-500.0,0.00021916,2]
[332472610,1721220639647,-500.0,0.00021916,2]
[332472611,1721220639657,-500.0,0.00021916,2]
[332472612,1721220639666,-500.0,0.00021916,2]
[332472613,1721220639674,-500.0,0.00021916,2]
[332472614,1721220639684,-500.0,0.00021916,2]
[332472615,1721220639694,-250.0,0.00021916,2]
[332472616,1721220639703,-500.0,0.00021916,2]
[332472617,1721220639712,-500.0,0.00021916,2]
[332472618,1721220639721,-189.91844284,0.00021916,2]
[332472619,1721220639730,-414.07867235,0.00021916,2]
[332472620,1721220639740,-398.61010648,0.00021916,2]
[332472621,1721220639749,-1067.07630449,0.00021917,2]
[332472622,1721220639758,-16.00311916,0.00021917,2]
[332472623,1721220639768,-500.0,0.00021917,2]
[332472624,1721220639777,-500.0,0.00021917,2]
[332472625,1721220639786,-500.0,0.00021917,2]
[332472626,1721220639796,-200.34350988,0.00021917,2]
[332472627,1721220639806,-500.0,0.00021917,2]
[332472628,1721220639815,-500.0,0.00021917,2]
[332472629,1721220639824,-500.0,0.00021917,2]
[332472630,1721220639833,-500.0,0.00021917,2]
[332472631,1721220639844,-500.0,0.00021917,2]
[332472632,1721220639855,-500.0,0.00021917,2]
[332472633,1721220639865,-500.0,0.00021917,2]
[332472634,1721220639875,-500.0,0.00021917,2]
[332472635,1721220639884,-500.0,0.00021917,2]
[332472636,1721220639893,-500.0,0.00021917,2]
[332472637,1721220639902,-500.0,0.00021917,2]
[332472638,1721220639913,-500.0,0.00021917,2]
[332472639,1721220639923,-500.0,0.00021917,2]
[332472640,1721220639935,-500.0,0.00021917,2]
[332472641,1721220639946,-500.0,0.00021917,2]
[332472642,1721220639957,-500.0,0.00021917,2]
[332472643,1721220639968,-500.0,0.00021917,2]
[332472644,1721220639980,-500.0,0.00021917,2]
[332472645,1721220639990,-500.0,0.00021917,2]
[332472646,1721220640001,-500.0,0.00021917,2]
[332472650,1721220640011,-500.0,0.00021917,2]
[332472651,1721220640205,-500.0,0.00021917,2]
[332472652,1721220640216,-500.0,0.00021917,2]
[332472653,1721220640226,-500.0,0.00021917,2]
[332472654,1721220640235,-500.0,0.00021917,2]
[332472655,1721220640245,-500.0,0.00021917,2]
[332472656,1721220640254,-500.0,0.00021917,2]
[332472657,1721220640264,-500.0,0.00021917,2]
[332472658,1721220640273,-500.0,0.00021917,2]
[332472659,1721220640284,-500.0,0.00021917,2]
[332472660,1721220640293,-500.0,0.00021917,2]
[332472661,1721220640302,-500.0,0.00021917,2]
[332472662,1721220640313,-66.1771125,0.00021917,2]
[332472687,1721220640781,-433.8228875,0.00021917,2]
[332472689,1721220640793,-500.0,0.00021917,2]
[332472691,1721220640803,-473.00195591,0.00021917,2]
[332472697,1721220640842,-26.99804409,0.00021917,2]
[332472699,1721220640853,-354.8589622,0.00021917,2]
[332472701,1721220640863,-500.0,0.00021917,2]
[332472703,1721220640873,-500.0,0.00021917,2]
[332472705,1721220640882,-500.0,0.00021917,2]
[332472706,1721220640891,-500.0,0.00021917,2]
[332472707,1721220640900,-500.0,0.00021917,2]
[332472709,1721220640913,-500.0,0.00021917,2]
[332472710,1721220640922,-500.0,0.00021917,2]
[332472711,1721220640931,-580.0,0.00021917,2]
[332472712,1721220640941,-506.07832615,0.00021917,2]
[332472713,1721220640950,-500.0,0.00021917,2]
[332472714,1721220640960,-500.0,0.00021917,2]
[332472715,1721220640970,-500.0,0.00021917,2]
[332472716,1721220640980,-500.0,0.00021917,2]
[332472717,1721220640989,-500.0,0.00021917,2]
[332472718,1721220640998,-500.0,0.00021917,2]
[332472719,1721220641008,-500.0,0.00021917,2]
[332472720,1721220641017,-500.0,0.00021917,2]
[332472721,1721220641027,-500.0,0.00021917,2]
[332472722,1721220641036,-500.0,0.00021917,2]
[332472723,1721220641046,-222.85726708,0.00021917,2]
[332472724,1721220641055,-500.0,0.00021917,2]
[332472725,1721220641066,-500.0,0.00021917,2]
[332472726,1721220641076,-171.05943215,0.00021917,2]
[332472727,1721220641086,-2379.37,0.00021917,2]
[332472728,1721220641096,-500.0,0.00021917,2]
[332472729,1721220641107,-15831.83,0.00021917,2]
[332472730,1721220641119,-646.41947755,0.00021917,2]
[332472731,1721220641129,-500.0,0.00021917,2]
[332472732,1721220641139,-500.0,0.00021917,2]
[332472733,1721220641149,-500.0,0.00021917,2]
[332472734,1721220641159,-500.0,0.00021917,2]
[332472735,1721220641168,-305.095,0.00021917,2]
[332472736,1721220641178,-500.0,0.00021917,2]
[332472737,1721220641189,-500.0,0.00021917,2]
[332472738,1721220641198,-500.0,0.00021917,2]
[332472739,1721220641207,-500.0,0.00021917,2]
[332472740,1721220641218,-500.0,0.00021917,2]
[332472741,1721220641227,-500.0,0.00021917,2]
[332472742,1721220641236,-500.0,0.00021917,2]
[332472743,1721220641246,-500.0,0.00021917,2]
[332472744,1721220641256,-504.22135143,0.00021917,2]
[332472745,1721220641265,-500.0,0.00021917,2]
[332472746,1721220641275,-500.0,0.00021917,2]
[332472747,1721220641284,-500.0,0.00021917,2]
[332472748,1721220641294,-500.0,0.00021917,2]
[332472749,1721220641303,-500.0,0.00021917,2]
[332472750,1721220641313,-500.0,0.00021917,2]
[332472751,1721220641323,-500.0,0.00021917,2]
[332472752,1721220641333,-500.0,0.00021917,2]
[332472753,1721220641342,-500.0,0.00021917,2]
[332472754,1721220641352,-500.0,0.00021917,2]
[332472755,1721220641363,-500.0,0.00021917,2]
[332472756,1721220641373,-500.0,0.00021917,2]
[332472757,1721220641382,-500.0,0.00021917,2]
[332472758,1721220641392,-500.0,0.00021917,2]
[332472759,1721220641401,-500.0,0.00021917,2]
[332472760,1721220641411,-500.0,0.00021917,2]
[332472761,1721220641421,-511.16446902,0.00021917,2]
[332472762,1721220641430,-500.0,0.00021917,2]
[332472763,1721220641440,-500.0,0.00021917,2]
[332472764,1721220641449,-500.0,0.00021917,2]
[332472765,1721220641458,-500.0,0.00021917,2]
[332472766,1721220641469,-500.0,0.00021917,2]
[332472767,1721220641479,-500.0,0.00021917,2]
[332472768,1721220641488,-500.0,0.00021917,2]
[332472769,1721220641498,-500.0,0.00021917,2]
[332472770,1721220641507,-500.0,0.00021917,2]
[332472771,1721220641517,-500.0,0.00021917,2]
[332472772,1721220641526,-500.0,0.00021917,2]
[332472773,1721220641536,-500.0,0.00021917,2]
[332472774,1721220641545,-500.0,0.00021917,2]
[332472775,1721220641558,-500.0,0.00021917,2]
[332472776,1721220641568,-500.0,0.00021917,2]
[332472777,1721220641577,-500.0,0.00021917,2]
[332472778,1721220641586,-500.0,0.00021917,2]
[332472779,1721220641596,-500.0,0.00021917,2]
[332472780,1721220641605,-500.0,0.00021917,2]
[332472781,1721220641615,-500.0,0.00021917,2]
[332472782,1721220641624,-3227.04,0.00021917,2]
[332472783,1721220641634,-500.0,0.00021917,2]
[332472784,1721220641643,-500.0,0.00021917,2]
[332472785,1721220641652,-480.0,0.00021917,2]
[332472786,1721220641662,-500.0,0.00021917,2]
[332472787,1721220641671,-500.0,0.00021917,2]
[332472788,1721220641681,-466.15124785,0.00021917,2]
[332472789,1721220641690,-500.0,0.00021917,2]
[332472790,1721220641699,-160.42392706,0.00021917,2]
[332472791,1721220641709,-500.0,0.00021917,2]
[332472792,1721220641721,-193.4388325,0.00021917,2]
[332472793,1721220641731,-500.0,0.00021917,2]
[332472794,1721220641740,-500.0,0.00021917,2]
[332472795,1721220641750,-500.0,0.00021917,2]
[332472796,1721220641759,-512.85033136,0.00021917,2]
[332472797,1721220641768,-500.0,0.00021917,2]
[332472798,1721220641777,-500.0,0.00021917,2]
[332472799,1721220641787,-500.0,0.00021917,2]
[332472800,1721220641796,-500.0,0.00021917,2]
[332472801,1721220641806,-500.0,0.00021917,2]
[332472802,1721220641816,-500.0,0.00021917,2]
[332472803,1721220641826,-500.0,0.00021917,2]
[332472804,1721220641836,-500.0,0.00021917,2]
[332472805,1721220641846,-500.0,0.00021917,2]
[332472806,1721220641857,-500.0,0.00021917,2]
[332472807,1721220641867,-500.0,0.00021917,2]
[332472808,1721220641876,-500.0,0.00021917,2]
[332472809,1721220641885,-500.0,0.00021917,2]
[332472810,1721220641895,-500.0,0.00021917,2]
[332472811,1721220641905,-603.99930995,0.00021917,2]
[332472812,1721220641916,-500.0,0.00021917,2]
[332472813,1721220641925,-500.0,0.00021917,2]
[332472814,1721220641934,-340.65018104,0.00021917,2]
[332472815,1721220641943,-500.15193219,0.00021917,2]
[332472816,1721220641953,-500.0,0.00021917,2]
[332472817,1721220641962,-500.0,0.00021917,2]
[332472818,1721220641975,-500.0,0.00021917,2]
[332472819,1721220641986,-500.0,0.00021917,2]
[332472820,1721220641994,-500.0,0.00021917,2]
[332472821,1721220642003,-500.0,0.00021917,2]
[332472822,1721220642012,-500.0,0.00021917,2]
[332472823,1721220642021,-500.0,0.00021917,2]
[332472824,1721220642030,-500.0,0.00021917,2]
[332472825,1721220642039,-500.0,0.00021917,2]
[332472826,1721220642048,-500.0,0.00021917,2]
[332472827,1721220642057,-596.31,0.00021917,2]
[332472828,1721220642066,-500.0,0.00021917,2]
[332472829,1721220642076,-500.0,0.00021917,2]
[332472830,1721220642085,-500.0,0.00021917,2]
[332472831,1721220642094,-500.0,0.00021917,2]
[332472832,1721220642104,-500.0,0.00021917,2]
[332472833,1721220642116,-500.0,0.00021917,2]
[332472834,1721220642126,-500.0,0.00021917,2]
[332472835,1721220642135,-500.0,0.00021917,2]
[332472836,1721220642143,-500.0,0.00021917,2]
[332472837,1721220642154,-500.0,0.00021917,2]
[332472838,1721220642163,-500.0,0.00021917,2]
[332472839,1721220642171,-500.0,0.00021917,2]
[332472840,1721220642181,-500.0,0.00021917,2]
[332472841,1721220642193,-500.0,0.00021917,2]
[332472842,1721220642202,-500.0,0.00021917,2]
[332472843,1721220642211,-500.0,0.00021917,2]
[332472844,1721220642222,-500.0,0.00021917,2]
[332472845,1721220642231,-500.0,0.00021917,2]
[332472846,1721220642240,-500.0,0.00021917,2]
[332472847,1721220642250,-500.0,0.00021917,2]
[332472849,1721220642259,-500.0,0.00021917,2]
[332472850,1721220642269,-500.0,0.00021917,2]
[332472851,1721220642278,-500.0,0.00021917,2]
[332472852,1721220642287,-500.0,0.00021917,2]
[332472853,1721220642296,-500.0,0.00021917,2]
[332472854,1721220642305,-67.86748619,0.00021917,2]
[332472893,1721220643940,-432.13251381,0.00021917,2]
[332472894,1721220643950,-529.06699545,0.00021917,2]
[332472895,1721220643960,-500.0,0.00021917,2]
[332472896,1721220643972,-500.0,0.00021917,2]
[332472897,1721220643983,-500.0,0.00021917,2]
[332472898,1721220643993,-500.0,0.00021917,2]
[332472900,1721220644004,-500.0,0.00021917,2]
[332472901,1721220644014,-500.0,0.00021917,2]
[332472902,1721220644024,-500.0,0.00021917,2]
[332472903,1721220644034,-501.62817362,0.00021917,2]
[332472904,1721220644044,-500.0,0.00021917,2]
[332472905,1721220644053,-500.0,0.00021917,2]
[332472906,1721220644063,-500.0,0.00021917,2]
[332472907,1721220644073,-500.0,0.00021917,2]
[332472908,1721220644082,-500.0,0.00021917,2]
[332472909,1721220644092,-500.0,0.00021917,2]
[332472910,1721220644101,-500.0,0.00021917,2]
[332472911,1721220644115,-500.0,0.00021917,2]
[332472912,1721220644124,-435.31866524,0.00021917,2]
[332472913,1721220644134,-500.0,0.00021917,2]
[332472914,1721220644143,-500.0,0.00021917,2]
[332472915,1721220644155,-500.0,0.00021917,2]
[332472916,1721220644164,-500.0,0.00021917,2]
[332472917,1721220644173,-500.0,0.00021917,2]
[332472918,1721220644183,-319.07958488,0.00021917,2]
[332472983,1721221015985,1093.49344924,0.00020222,7]
[332473000,1721221576303,1160.1146898,0.00014999,2]
[332473002,1721221585873,3134.02290683,0.00014999,2]
[332473006,1721221694305,155.17601714,0.00014999,2]
[332473013,1721221741719,2550.68638623,0.00014999,2]
[332473014,1721221741743,978.42880513,0.00014999,2]
[332473019,1721221762831,3598.12967124,0.00014999,2]
[332473191,1721221838752,-276.97473649,0.00017531,2]
[332473192,1721221838762,-154.95348764,0.0001818,2]
[332473193,1721221838772,-3598.12967124,0.0001818,2]
[332473194,1721221838782,-3000.0,0.000185,2]
[332473195,1721221838792,-191.39935973,0.00018798,2]
[332473196,1721221838802,-30000.0,0.00018798,2]
[332473197,1721221838812,-300.0,0.00018897,2]
[332473198,1721221838822,-1159.37445784,0.000189,2]
[332473199,1721221838832,-313.5828226,0.00019006,2]
[332473200,1721221838842,-312.07224722,0.00019039,2]
[332473201,1721221838851,-309.1806989,0.00019165,2]
[332473202,1721221838861,-164.526489,0.00019178,2]
[332473203,1721221838871,-164.769408,0.00019873,2]
[332473204,1721221838882,-228.33337167,0.0002,2]
[332473205,1721221838891,-226.06683349,0.00020222,2]
[332473206,1721221838901,-215.01715484,0.00020222,2]
[332473207,1721221838911,-428.94151396,0.00020222,2]
[332473208,1721221838922,-764.99692513,0.00020222,2]
[332473209,1721221838931,-24890.0,0.00020509,2]
[332473210,1721221838941,-207.84529184,0.00020687,2]
[332473211,1721221838951,-420.0,0.00020787,2]
[332473212,1721221838963,-200.07730814,0.00021095,2]
[332473213,1721221838972,-553.753693,0.00021096,2]
[332473214,1721221838982,-216.5,0.00021234,2]
[332473215,1721221838992,-207.84529182,0.00021252,2]
[332473216,1721221839002,-216.5,0.00021445,2]
[332473217,1721221839012,-1000.0,0.00021652,2]
[332473218,1721221839022,-216.5,0.00021657,2]
[332473219,1721221839032,-1000.0,0.00021666,2]
[332473220,1721221839041,-153.0,0.00021699,2]
[332473221,1721221839052,-153.0,0.00021699,2]
[332473222,1721221839062,-153.0,0.00021699,2]
[332473223,1721221839072,-5159.77007997,0.00021711,2]
[332473224,1721221839082,-1407.0,0.00021716,2]
[332473225,1721221839092,-877.02144721,0.00021743,2]
[332473226,1721221839101,-150.0,0.000218,2]
[332473227,1721221839111,-2000.0,0.00021817,2]
[332473228,1721221839121,-250.0066499,0.00021817,2]
[332473229,1721221839131,-207.84529182,0.00021817,2]
[332473230,1721221839140,-300.44952216,0.00021822,2]
[332473231,1721221839150,-224.9314356,0.00021863,2]
[332473232,1721221839159,-153.0,0.00021863,2]
[332473233,1721221839169,-153.0,0.00021863,2]
[332473234,1721221839178,-216.5,0.00021868,2]
[332473235,1721221839191,-150.5,0.00021888,7]
[332473236,1721221839201,-150.5,0.00021898,7]
[332473237,1721221839212,-2518.08,0.000219,2]
[332473238,1721221839222,-1945.47989268,0.000219,2]
[332473239,1721221839232,-294.0,0.000219,2]
[332473240,1721221839242,-150.112233,0.000219,2]
[332473241,1721221839252,-344.96997794,0.00021904,2]
[332473242,1721221839261,-9071.07611797,0.00021906,3]
[332473244,1721221839271,-45355.3805898,0.00021907,3]
[332473246,1721221839281,-150.5,0.00021908,7]
[332473247,1721221839291,-500.0,0.00021916,2]
[332473248,1721221839301,-500.0,0.00021916,2]
[332473249,1721221839311,-348.3514457,0.00021916,2]
[332473250,1721221839321,-500.0,0.00021916,2]
[332473251,1721221839332,-195.9277349,0.00021916,2]
[332473252,1721221839342,-380.26224118,0.00021916,2]
[332473253,1721221839352,-328.70035493,0.00021916,2]
[332473254,1721221839362,-500.0,0.00021916,2]
[332473255,1721221839371,-500.0,0.00021916,2]
[332473256,1721221839381,-500.0,0.00021916,2]
[332473257,1721221839390,-500.0,0.00021916,2]
[332473258,1721221839401,-500.0,0.00021916,2]
[332473259,1721221839411,-500.0,0.00021916,2]
[332473260,1721221839422,-500.0,0.00021916,2]
[332473261,1721221839432,-500.0,0.00021916,2]
[332473262,1721221839444,-500.0,0.00021916,2]
[332473263,1721221839454,-500.0,0.00021916,2]
[332473264,1721221839465,-466.39480945,0.00021916,2]
[332473265,1721221839475,-500.0,0.00021916,2]
[332473266,1721221839484,-500.0,0.00021916,2]
[332473267,1721221839494,-500.0,0.00021916,2]
[332473268,1721221839503,-400.0,0.00021916,2]
[332473269,1721221839516,-183.30708007,0.00021916,2]
[332473270,1721221839527,-269.44300926,0.00021916,2]
[332473272,1721221839536,-500.0,0.00021916,2]
[332473274,1721221839546,-300.0,0.00021916,2]
[332473276,1721221839558,-250.0,0.00021916,2]
[332473277,1721221839567,-300.0,0.00021916,2]
[332473278,1721221839577,-500.0,0.00021916,2]
[332473279,1721221839586,-285.18002476,0.00021916,2]
[332473280,1721221839598,-450.0,0.00021916,2]
[332473281,1721221839608,-58172.85801974,0.00021916,2]
[332473304,1721221840119,-403.83250955,0.00019165,2]
[332473306,1721221840128,-91377.10754779,0.00021916,2]
[332473308,1721221840138,-4823.80902104,0.00021917,5]
[332473309,1721221840147,-1067.07630449,0.00021917,2]
[332473311,1721221840156,-240.20078219,0.00021917,2]
[332473314,1721221840166,-180.92041512,0.00021917,2]
[332473315,1721221840175,-500.0,0.00021917,2]
[332473318,1721221840185,-500.0,0.00021917,2]
[332473320,1721221840195,-500.0,0.00021917,2]
[332473322,1721221840204,-500.0,0.00021917,2]
[332473324,1721221840214,-500.0,0.00021917,2]
[332473326,1721221840224,-500.0,0.00021917,2]
[332473328,1721221840233,-500.0,0.00021917,2]
[332473330,1721221840242,-500.0,0.00021917,2]
[332473332,1721221840252,-3699.38575125,0.00021917,2]
[332473334,1721221840261,-500.0,0.00021917,2]
[332473336,1721221840271,-509.84706491,0.00021917,2]
[332473338,1721221840280,-500.0,0.00021917,2]
[332473340,1721221840290,-500.0,0.00021917,2]
[332473342,1721221840299,-500.0,0.00021917,2]
[332473345,1721221840318,-500.0,0.00021917,2]
[332473347,1721221840330,-500.0,0.00021917,2]
[332473348,1721221840339,-500.0,0.00021917,2]
[332473349,1721221840349,-500.0,0.00021917,2]
[332473350,1721221840358,-500.0,0.00021917,2]
[332473351,1721221840368,-500.0,0.00021917,2]
[332473352,1721221840377,-584.47402881,0.00021917,2]
[332473353,1721221840387,-500.0,0.00021917,2]
[332473354,1721221840396,-500.0,0.00021917,2]
[332473355,1721221840406,-500.0,0.00021917,2]
[332473356,1721221840416,-500.0,0.00021917,2]
[332473357,1721221840425,-500.0,0.00021917,2]
[332473358,1721221840434,-500.0,0.00021917,2]
[332473359,1721221840445,-500.0,0.00021917,2]
[332473360,1721221840454,-502.36852615,0.00021917,2]
[332473361,1721221840465,-500.0,0.00021917,2]
[332473362,1721221840475,-500.0,0.00021917,2]
[332473363,1721221840484,-500.0,0.00021917,2]
[332473364,1721221840494,-232.95849691,0.00021917,2]
[332473365,1721221840503,-500.0,0.00021917,2]
[332473366,1721221840516,-500.0,0.00021917,2]
[332473367,1721221840527,-500.0,0.00021917,2]
[332473368,1721221840537,-500.0,0.00021917,2]
[332473369,1721221840547,-500.0,0.00021917,2]
[332473370,1721221840559,-500.0,0.00021917,2]
[332473371,1721221840570,-500.0,0.00021917,2]
[332473372,1721221840583,-500.0,0.00021917,2]
[332473373,1721221840595,-500.0,0.00021917,2]
[332473374,1721221840607,-500.0,0.00021917,2]
[332473375,1721221840617,-500.0,0.00021917,2]
[332473376,1721221840627,-512.12401173,0.00021917,2]
[332473377,1721221840638,-500.0,0.00021917,2]
[332473378,1721221840649,-500.0,0.00021917,2]
[332473379,1721221840660,-500.0,0.00021917,2]
[332473380,1721221840671,-500.0,0.00021917,2]
[332473381,1721221840681,-500.0,0.00021917,2]
[332473382,1721221840691,-500.04157604,0.00021917,2]
[332473383,1721221840702,-500.0,0.00021917,2]
[332473384,1721221840712,-273.27086151,0.00021917,2]
[332473385,1721221840721,-500.0,0.00021917,2]
[332473386,1721221840732,-500.0,0.00021917,2]
[332473387,1721221840742,-500.0,0.00021917,2]
[332473388,1721221840752,-500.0,0.00021917,2]
[332473389,1721221840764,-500.0,0.00021917,2]
[332473390,1721221840775,-206.17994244,0.00021917,2]
[332473391,1721221840786,-329.63129064,0.00021917,2]
[332473392,1721221840797,-500.0,0.00021917,2]
[332473393,1721221840809,-500.0,0.00021917,2]
[332473394,1721221840818,-500.0,0.00021917,2]
[332473395,1721221840829,-492.29200171,0.00021917,2]
[332473396,1721221840841,-525.68128778,0.00021917,2]
[332473397,1721221840852,-170.36870936,0.00021917,2]
[332473398,1721221840864,-402.243462,0.00021917,2]
[332473399,1721221840876,-500.0,0.00021917,2]
[332473400,1721221840886,-291.67007413,0.00021917,2]
[332473401,1721221840897,-500.0,0.00021917,2]
[332473402,1721221840908,-500.0,0.00021917,2]
[332473403,1721221840920,-500.0,0.00021917,2]
[332473404,1721221840930,-500.0,0.00021917,2]
[332473405,1721221840940,-500.0,0.00021917,2]
[332473406,1721221840950,-500.0,0.00021917,2]
[332473407,1721221840959,-500.0,0.00021917,2]
[332473408,1721221840970,-500.0,0.00021917,2]
[332473409,1721221840980,-500.0,0.00021917,2]
[332473410,1721221840992,-500.0,0.00021917,2]
[332473411,1721221841002,-500.0,0.00021917,2]
[332473412,1721221841012,-500.0,0.00021917,2]
[332473413,1721221841024,-500.0,0.00021917,2]
[332473414,1721221841034,-500.0,0.00021917,2]
[332473415,1721221841043,-500.0,0.00021917,2]
[332473416,1721221841267,-500.0,0.00021917,2]
[332473417,1721221841276,-500.0,0.00021917,2]
[332473418,1721221841287,-500.0,0.00021917,2]
[332473419,1721221841296,-500.0,0.00021917,2]
[332473420,1721221841306,-500.0,0.00021917,2]